[Event "Titled Tuesday Blitz November 14 Late 2023"]
[White "Yeritsyan, Hayk"]
[Black "Maksimovic, Bojan"]
[WhiteFideId "13307320"]
[BlackFideId "14408120"]
[WhiteElo "2432"]
[BlackElo "2788"]
[Result "0-1"]
[Round "1"]
[TimeControl "180+1"]
[Date "2023.11.14"]
[WhiteClock "0:00:02"]
[BlackClock "0:01:05"]
[Board "55"]

1. d4 {[%clk 0:02:51]}  Nf6 {[%clk 0:02:59]} 2. Nf3 {[%clk 0:02:51]}  d6 {[%clk 0:02:59]} 3. Bf4 {[%clk 0:02:51]}  c5 {[%clk 0:02:55]} 4. e3 {[%clk 0:02:51]}  g6 {[%clk 0:02:49]} 5. c3 {[%clk 0:02:49]}  Qb6 {[%clk 0:02:45]} 6. Qb3 {[%clk 0:02:36]}  Bg7 {[%clk 0:02:44]} 7. h3 {[%clk 0:02:34]}  Be6 {[%clk 0:02:40]} 8. Qxb6 {[%clk 0:02:34]}  axb6 {[%clk 0:02:41]} 9. a3 {[%clk 0:02:34]}  Na6 {[%clk 0:02:30]} 10. Nbd2 {[%clk 0:02:32]}  Nc7 {[%clk 0:02:26]} 11. Be2 {[%clk 0:02:31]}  cxd4 {[%clk 0:02:23]} 12. exd4 {[%clk 0:02:30]}  b5 {[%clk 0:02:20]} 13. O-O {[%clk 0:02:29]}  h6 {[%clk 0:02:20]} 14. Rfe1 {[%clk 0:02:27]}  Nfd5 {[%clk 0:02:18]} 15. Bh2 {[%clk 0:02:27]}  Nb6 {[%clk 0:02:17]} 16. Bd3 {[%clk 0:02:26]}  Kd7 {[%clk 0:02:16]} 17. Re2 {[%clk 0:02:11]}  Na4 {[%clk 0:02:08]} 18. Ne4 {[%clk 0:01:47]}  Bc4 {[%clk 0:02:03]} 19. Bxc4 {[%clk 0:01:37]}  bxc4 {[%clk 0:02:04]} 20. Rae1 {[%clk 0:01:37]}  Nd5 {[%clk 0:01:57]} 21. Rc2 {[%clk 0:01:20]}  f5 {[%clk 0:01:50]} 22. Ned2 {[%clk 0:01:10]}  Rac8 {[%clk 0:01:50]} 23. Re2 {[%clk 0:01:03]}  Bf6 {[%clk 0:01:46]} 24. Nf1 {[%clk 0:01:00]}  Bg5 {[%clk 0:01:32]} 25. Nxg5 {[%clk 0:00:18]}  hxg5 {[%clk 0:01:33]} 26. Ne3 {[%clk 0:00:18]}  Nxe3 {[%clk 0:01:31]} 27. fxe3 {[%clk 0:00:17]}  Rh4 {[%clk 0:01:30]} 28. Bg3 {[%clk 0:00:15]}  Re4 {[%clk 0:01:30]} 29. Kf2 {[%clk 0:00:14]}  Nb6 {[%clk 0:01:28]} 30. Kf1 {[%clk 0:00:11]}  Nd5 {[%clk 0:01:27]} 31. Bf2 {[%clk 0:00:12]}  Rh8 {[%clk 0:01:24]} 32. Kg1 {[%clk 0:00:12]}  g4 {[%clk 0:01:24]} 33. h4 {[%clk 0:00:09]}  Ra8 {[%clk 0:01:14]} 34. Kf1 {[%clk 0:00:08]}  Kc6 {[%clk 0:01:15]} 35. Ke1 {[%clk 0:00:08]}  Kb5 {[%clk 0:01:16]} 36. Kd2 {[%clk 0:00:09]}  Ka4 {[%clk 0:01:16]} 37. Bg3 {[%clk 0:00:08]}  Kb3 {[%clk 0:01:16]} 38. Kc1 {[%clk 0:00:06]}  Rh8 {[%clk 0:01:14]} 39. Bf4 {[%clk 0:00:05]}  Rxh4 {[%clk 0:01:13]} 40. g3 {[%clk 0:00:05]}  Rh1+ {[%clk 0:01:09]} 41. Kd2 {[%clk 0:00:05]}  Rh5 {[%clk 0:01:09]} 42. Kc1 {[%clk 0:00:05]}  g5 {[%clk 0:01:09]} 43. Rcd2 {[%clk 0:00:03]}  b5 {[%clk 0:01:05]} 44. Rd1 {[%clk 0:00:02]}  gxf4 {[%clk 0:01:05]} 45. exf4 {[%clk 0:00:02]}  Rxe2 {[%clk 0:01:05]} 0-1


[Site "https://www.chess.com"]

[Event "Titled Tuesday Blitz November 14 Late 2023"]
[White "ATM622"]
[Black "Borsuk, Konstantin"]
[BlackFideId "14113406"]
[WhiteElo "2431"]
[BlackElo "2770"]
[Result "0-1"]
[Round "1"]
[TimeControl "180+1"]
[Date "2023.11.14"]
[WhiteClock "0:00:02"]
[BlackClock "0:00:11"]
[Board "57"]

1. d4 {[%clk 0:03:00]}  Nf6 {[%clk 0:02:59]} 2. c4 {[%clk 0:02:59]}  e6 {[%clk 0:02:59]} 3. g3 {[%clk 0:02:59]}  Bb4+ {[%clk 0:02:58]} 4. Nd2 {[%clk 0:02:57]}  a5 {[%clk 0:02:51]} 5. Bg2 {[%clk 0:02:57]}  O-O {[%clk 0:02:51]} 6. Nf3 {[%clk 0:02:52]}  Re8 {[%clk 0:02:48]} 7. O-O {[%clk 0:02:52]}  d5 {[%clk 0:02:47]} 8. Qc2 {[%clk 0:02:51]}  Nbd7 {[%clk 0:02:28]} 9. Rd1 {[%clk 0:02:46]}  c6 {[%clk 0:02:20]} 10. e4 {[%clk 0:02:45]}  dxe4 {[%clk 0:02:10]} 11. Nxe4 {[%clk 0:02:45]}  Nxe4 {[%clk 0:02:09]} 12. Qxe4 {[%clk 0:02:46]}  h6 {[%clk 0:02:03]} 13. a3 {[%clk 0:02:44]}  Bf8 {[%clk 0:02:02]} 14. Qc2 {[%clk 0:02:37]}  a4 {[%clk 0:02:02]} 15. Be3 {[%clk 0:02:28]}  Qa5 {[%clk 0:01:58]} 16. c5 {[%clk 0:02:19]}  Nf6 {[%clk 0:01:50]} 17. Ne5 {[%clk 0:02:08]}  Nd5 {[%clk 0:01:50]} 18. Bd2 {[%clk 0:02:02]}  Qd8 {[%clk 0:01:47]} 19. Be4 {[%clk 0:01:59]}  f5 {[%clk 0:01:33]} 20. Bf3 {[%clk 0:01:58]}  Nf6 {[%clk 0:01:28]} 21. Be3 {[%clk 0:01:57]}  g5 {[%clk 0:01:26]} 22. h4 {[%clk 0:01:47]}  g4 {[%clk 0:01:22]} 23. Bg2 {[%clk 0:01:46]}  Bg7 {[%clk 0:01:22]} 24. Nc4 {[%clk 0:01:35]}  Nd5 {[%clk 0:01:15]} 25. Nd6 {[%clk 0:01:35]}  Rf8 {[%clk 0:01:12]} 26. Qd2 {[%clk 0:01:31]}  f4 {[%clk 0:01:09]} 27. gxf4 {[%clk 0:01:20]}  Qxh4 {[%clk 0:01:08]} 28. Ne4 {[%clk 0:01:02]}  Bd7 {[%clk 0:01:05]} 29. Ng3 {[%clk 0:00:43]}  Rf7 {[%clk 0:01:04]} 30. Ne2 {[%clk 0:00:34]}  Raf8 {[%clk 0:01:00]} 31. Qd3 {[%clk 0:00:31]}  Be8 {[%clk 0:00:54]} 32. Qe4 {[%clk 0:00:28]}  Rf6 {[%clk 0:00:53]} 33. Qe5 {[%clk 0:00:22]}  Bg6 {[%clk 0:00:46]} 34. Be4 {[%clk 0:00:17]}  Bxe4 {[%clk 0:00:45]} 35. Qxe4 {[%clk 0:00:17]}  Kh8 {[%clk 0:00:40]} 36. Ng3 {[%clk 0:00:17]}  Nxf4 {[%clk 0:00:38]} 37. Rd2 {[%clk 0:00:13]}  Nd5 {[%clk 0:00:30]} 38. Kg2 {[%clk 0:00:09]}  Qh3+ {[%clk 0:00:29]} 39. Kg1 {[%clk 0:00:09]}  Rf3 {[%clk 0:00:27]} 40. Nf1 {[%clk 0:00:05]}  Qh5 {[%clk 0:00:14]} 41. Qxe6 {[%clk 0:00:05]}  Rh3 {[%clk 0:00:13]} 42. Ng3 {[%clk 0:00:04]}  Qh4 {[%clk 0:00:13]} 43. Re2 {[%clk 0:00:03]}  Rxg3+ {[%clk 0:00:12]} 44. fxg3 {[%clk 0:00:03]}  Qxg3+ {[%clk 0:00:12]} 45. Kh1 {[%clk 0:00:04]}  Qf3+ {[%clk 0:00:11]} 46. Rg2 {[%clk 0:00:04]}  Nxe3 {[%clk 0:00:11]} 47. Rg1 {[%clk 0:00:04]}  Nxg2 {[%clk 0:00:10]} 48. Rxg2 {[%clk 0:00:05]}  Qh3+ {[%clk 0:00:10]} 49. Kg1 {[%clk 0:00:02]}  Bxd4+ {[%clk 0:00:11]} 0-1


[Site "https://www.chess.com"]

[Event "Titled Tuesday Blitz November 14 Late 2023"]
[White "Sokolovsky, Yahli"]
[Black "Stanojevic, Ilija"]
[WhiteFideId "2820242"]
[BlackFideId "959995"]
[WhiteElo "2768"]
[BlackElo "2428"]
[Result "1-0"]
[Round "1"]
[TimeControl "180+1"]
[Date "2023.11.14"]
[WhiteClock "0:00:31"]
[BlackClock "0:00:52"]
[Board "58"]

1. b3 {[%clk 0:03:00]}  e5 {[%clk 0:02:58]} 2. Bb2 {[%clk 0:03:01]}  Nc6 {[%clk 0:02:59]} 3. e3 {[%clk 0:03:02]}  Nf6 {[%clk 0:02:59]} 4. Nf3 {[%clk 0:03:03]}  e4 {[%clk 0:02:59]} 5. Nd4 {[%clk 0:03:03]}  Na5 {[%clk 0:02:46]} 6. c4 {[%clk 0:02:59]}  c5 {[%clk 0:02:45]} 7. Ne2 {[%clk 0:02:57]}  d5 {[%clk 0:02:42]} 8. cxd5 {[%clk 0:02:57]}  Nxd5 {[%clk 0:02:37]} 9. Nbc3 {[%clk 0:02:53]}  Nb4 {[%clk 0:02:37]} 10. Nf4 {[%clk 0:02:54]}  Bf5 {[%clk 0:02:33]} 11. Bb5+ {[%clk 0:02:47]}  Nac6 {[%clk 0:02:32]} 12. a3 {[%clk 0:02:43]}  Nd3+ {[%clk 0:02:13]} 13. Nxd3 {[%clk 0:02:40]}  exd3 {[%clk 0:02:14]} 14. Qf3 {[%clk 0:02:18]}  Qd7 {[%clk 0:01:51]} 15. e4 {[%clk 0:01:24]}  Be6 {[%clk 0:01:48]} 16. Nd5 {[%clk 0:01:01]}  Bd6 {[%clk 0:01:31]} 17. Bxg7 {[%clk 0:00:58]}  O-O-O {[%clk 0:01:30]} 18. Bxh8 {[%clk 0:00:49]}  Bxd5 {[%clk 0:01:30]} 19. exd5 {[%clk 0:00:39]}  Re8+ {[%clk 0:01:30]} 20. Kd1 {[%clk 0:00:33]}  a6 {[%clk 0:01:03]} 21. dxc6 {[%clk 0:00:32]}  Qe6 {[%clk 0:01:03]} 22. cxb7+ {[%clk 0:00:30]}  Kb8 {[%clk 0:01:03]} 23. Bxe8 {[%clk 0:00:30]}  Qxb3+ {[%clk 0:00:52]} 24. Ke1 {[%clk 0:00:31]} 1-0


[Site "https://www.chess.com"]

[Event "Titled Tuesday Blitz November 14 Late 2023"]
[White "Nazari, Arad"]
[Black "Akhayan, Ruben"]
[WhiteFideId "12577324"]
[BlackFideId "204439"]
[WhiteElo "2757"]
[BlackElo "2427"]
[Result "1-0"]
[Round "1"]
[TimeControl "180+1"]
[Date "2023.11.14"]
[WhiteClock "0:00:24"]
[BlackClock "0:00:26"]
[Board "60"]

1. e4 {[%clk 0:02:21]}  e5 {[%clk 0:02:58]} 2. f4 {[%clk 0:02:20]}  Nc6 {[%clk 0:02:57]} 3. Nf3 {[%clk 0:02:20]}  f5 {[%clk 0:02:58]} 4. exf5 {[%clk 0:02:18]}  e4 {[%clk 0:02:58]} 5. Ne5 {[%clk 0:02:17]}  Nf6 {[%clk 0:02:57]} 6. Nc3 {[%clk 0:02:16]}  d6 {[%clk 0:02:51]} 7. Nxc6 {[%clk 0:01:48]}  bxc6 {[%clk 0:02:52]} 8. g4 {[%clk 0:01:45]}  h5 {[%clk 0:02:32]} 9. g5 {[%clk 0:01:39]}  Nd5 {[%clk 0:02:33]} 10. Nxe4 {[%clk 0:01:36]}  Bxf5 {[%clk 0:02:33]} 11. d3 {[%clk 0:01:31]}  Qe7 {[%clk 0:02:20]} 12. Qf3 {[%clk 0:01:28]}  Bg4 {[%clk 0:02:13]} 13. Qf2 {[%clk 0:01:22]}  Nb4 {[%clk 0:02:06]} 14. a3 {[%clk 0:01:15]}  d5 {[%clk 0:02:04]} 15. axb4 {[%clk 0:01:06]}  dxe4 {[%clk 0:02:04]} 16. Be3 {[%clk 0:00:59]}  Qxb4+ {[%clk 0:02:01]} 17. c3 {[%clk 0:00:59]}  Qe7 {[%clk 0:01:54]} 18. dxe4 {[%clk 0:00:58]}  g6 {[%clk 0:01:36]} 19. Bg2 {[%clk 0:00:57]}  Bg7 {[%clk 0:01:35]} 20. O-O {[%clk 0:00:57]}  O-O {[%clk 0:01:36]} 21. Bc5 {[%clk 0:00:57]}  Qf7 {[%clk 0:01:35]} 22. Bxf8 {[%clk 0:00:57]}  Bxf8 {[%clk 0:01:35]} 23. Rxa7 {[%clk 0:00:58]}  Rd8 {[%clk 0:01:31]} 24. f5 {[%clk 0:00:56]}  Qc4 {[%clk 0:01:30]} 25. Ra5 {[%clk 0:00:45]}  Bd6 {[%clk 0:00:56]} 26. e5 {[%clk 0:00:33]}  Bf8 {[%clk 0:00:50]} 27. fxg6 {[%clk 0:00:32]}  Bg7 {[%clk 0:00:49]} 28. Qf7+ {[%clk 0:00:30]}  Qxf7 {[%clk 0:00:48]} 29. gxf7+ {[%clk 0:00:31]}  Kf8 {[%clk 0:00:49]} 30. Bxc6 {[%clk 0:00:31]}  Be6 {[%clk 0:00:41]} 31. g6 {[%clk 0:00:30]}  Ke7 {[%clk 0:00:40]} 32. Ra7 {[%clk 0:00:27]}  Bxe5 {[%clk 0:00:26]} 33. Ra8 {[%clk 0:00:24]} 1-0


[Site "https://www.chess.com"]

[Event "Titled Tuesday Blitz November 14 Late 2023"]
[White "Nunez V, Gustavo Eduardo"]
[Black "Boyer, Mahel"]
[WhiteFideId "4403690"]
[BlackFideId "45102422"]
[WhiteElo "2421"]
[BlackElo "2708"]
[Result "0-1"]
[Round "1"]
[TimeControl "180+1"]
[Date "2023.11.14"]
[WhiteClock "0:00:08"]
[BlackClock "0:00:08"]
[Board "69"]

1. e4 {[%clk 0:03:00]}  Nc6 {[%clk 0:02:55]} 2. d4 {[%clk 0:03:00]}  d5 {[%clk 0:02:48]} 3. exd5 {[%clk 0:02:22]}  Qxd5 {[%clk 0:02:46]} 4. Ne2 {[%clk 0:02:23]}  Nf6 {[%clk 0:02:24]} 5. Be3 {[%clk 0:02:05]}  g6 {[%clk 0:01:50]} 6. Nbc3 {[%clk 0:02:02]}  Qd8 {[%clk 0:01:49]} 7. g3 {[%clk 0:01:48]}  Bg7 {[%clk 0:01:18]} 8. Bg2 {[%clk 0:01:43]}  O-O {[%clk 0:01:18]} 9. O-O {[%clk 0:01:43]}  Ng4 {[%clk 0:01:18]} 10. Ne4 {[%clk 0:00:57]}  Nxe3 {[%clk 0:01:08]} 11. fxe3 {[%clk 0:00:58]}  e5 {[%clk 0:01:08]} 12. Nc5 {[%clk 0:00:54]}  exd4 {[%clk 0:00:57]} 13. exd4 {[%clk 0:00:55]}  Nxd4 {[%clk 0:00:42]} 14. c3 {[%clk 0:00:50]}  Nxe2+ {[%clk 0:00:24]} 15. Qxe2 {[%clk 0:00:51]}  c6 {[%clk 0:00:24]} 16. Rae1 {[%clk 0:00:46]}  Qb6 {[%clk 0:00:19]} 17. Qc4 {[%clk 0:00:38]}  Be6 {[%clk 0:00:18]} 18. Rxe6 {[%clk 0:00:31]}  fxe6 {[%clk 0:00:17]} 19. Kh1 {[%clk 0:00:31]}  Rxf1+ {[%clk 0:00:17]} 20. Bxf1 {[%clk 0:00:30]}  Kh8 {[%clk 0:00:17]} 21. Nxe6 {[%clk 0:00:29]}  Qxb2 {[%clk 0:00:16]} 22. h3 {[%clk 0:00:29]}  Qf2 {[%clk 0:00:16]} 23. Bg2 {[%clk 0:00:28]}  Re8 {[%clk 0:00:14]} 24. Nxg7 {[%clk 0:00:23]}  Kxg7 {[%clk 0:00:12]} 25. Qg4 {[%clk 0:00:20]}  Re7 {[%clk 0:00:08]} 26. h4 {[%clk 0:00:19]}  Qe1+ {[%clk 0:00:07]} 27. Kh2 {[%clk 0:00:19]}  Qe6 {[%clk 0:00:08]} 28. Qf3 {[%clk 0:00:18]}  Qe5 {[%clk 0:00:09]} 29. Qd3 {[%clk 0:00:18]}  Rf7 {[%clk 0:00:08]} 30. Kh3 {[%clk 0:00:18]}  h5 {[%clk 0:00:09]} 31. Kh2 {[%clk 0:00:18]}  Qf6 {[%clk 0:00:08]} 32. a3 {[%clk 0:00:18]}  Qf5 {[%clk 0:00:09]} 33. Qd4+ {[%clk 0:00:19]}  Qf6 {[%clk 0:00:10]} 34. Qd3 {[%clk 0:00:19]}  Re7 {[%clk 0:00:10]} 35. Qc4 {[%clk 0:00:19]}  Kh7 {[%clk 0:00:10]} 36. Qd3 {[%clk 0:00:17]}  a6 {[%clk 0:00:11]} 37. a4 {[%clk 0:00:17]}  Qe5 {[%clk 0:00:10]} 38. Qf1 {[%clk 0:00:16]}  Kg7 {[%clk 0:00:10]} 39. Qc4 {[%clk 0:00:15]}  Rd7 {[%clk 0:00:10]} 40. Qb4 {[%clk 0:00:15]}  Rd3 {[%clk 0:00:07]} 41. Qxb7+ {[%clk 0:00:14]}  Kh6 {[%clk 0:00:08]} 42. Qxc6 {[%clk 0:00:14]}  Qxg3+ {[%clk 0:00:07]} 43. Kh1 {[%clk 0:00:08]}  Rd1+ {[%clk 0:00:08]} 0-1


[Site "https://www.chess.com"]

[Event "Titled Tuesday Blitz November 14 Late 2023"]
[White "Hamitevici, Vladimir"]
[Black "Hoffmann, Asa"]
[WhiteFideId "13902393"]
[BlackFideId "2001470"]
[WhiteElo "2706"]
[BlackElo "2417"]
[Result "1-0"]
[Round "1"]
[TimeControl "180+1"]
[Date "2023.11.14"]
[WhiteClock "0:00:17"]
[BlackClock "0:00:51"]
[Board "70"]

1. d3 {[%clk 0:02:57]}  Nf6 {[%clk 0:02:58]} 2. c3 {[%clk 0:02:57]}  e5 {[%clk 0:02:50]} 3. g3 {[%clk 0:02:57]}  c6 {[%clk 0:02:50]} 4. Nf3 {[%clk 0:02:56]}  Qc7 {[%clk 0:02:47]} 5. Bg2 {[%clk 0:02:55]}  d5 {[%clk 0:02:47]} 6. O-O {[%clk 0:02:54]}  Be7 {[%clk 0:02:47]} 7. e4 {[%clk 0:02:47]}  dxe4 {[%clk 0:02:44]} 8. dxe4 {[%clk 0:02:48]}  h6 {[%clk 0:02:43]} 9. Nh4 {[%clk 0:02:41]}  Be6 {[%clk 0:02:42]} 10. Nf5 {[%clk 0:02:37]}  Bxf5 {[%clk 0:02:41]} 11. exf5 {[%clk 0:02:38]}  Nbd7 {[%clk 0:02:41]} 12. Nd2 {[%clk 0:02:38]}  O-O {[%clk 0:02:39]} 13. Re1 {[%clk 0:02:34]}  Rad8 {[%clk 0:02:38]} 14. Qe2 {[%clk 0:02:17]}  Rfe8 {[%clk 0:02:36]} 15. b4 {[%clk 0:02:15]}  a5 {[%clk 0:02:29]} 16. a3 {[%clk 0:02:14]}  Bf8 {[%clk 0:02:27]} 17. Nc4 {[%clk 0:02:07]}  a4 {[%clk 0:02:20]} 18. Nb2 {[%clk 0:01:58]}  Ra8 {[%clk 0:02:07]} 19. c4 {[%clk 0:01:43]}  b6 {[%clk 0:01:51]} 20. Qc2 {[%clk 0:01:40]}  Qa7 {[%clk 0:01:45]} 21. Bxc6 {[%clk 0:01:38]}  Rac8 {[%clk 0:01:42]} 22. Qxa4 {[%clk 0:01:33]}  Qc7 {[%clk 0:01:37]} 23. Bg2 {[%clk 0:01:17]}  e4 {[%clk 0:01:32]} 24. Bf4 {[%clk 0:01:14]}  Bd6 {[%clk 0:01:32]} 25. Bxd6 {[%clk 0:01:13]}  Qxd6 {[%clk 0:01:32]} 26. Qb3 {[%clk 0:00:42]}  Qe5 {[%clk 0:01:27]} 27. Bh3 {[%clk 0:00:33]}  Nh7 {[%clk 0:01:22]} 28. f4 {[%clk 0:00:25]}  Qd4+ {[%clk 0:01:17]} 29. Kh1 {[%clk 0:00:25]}  Nhf6 {[%clk 0:01:13]} 30. Rad1 {[%clk 0:00:25]}  Qf2 {[%clk 0:01:12]} 31. Rf1 {[%clk 0:00:18]}  Qe3 {[%clk 0:01:05]} 32. Rfe1 {[%clk 0:00:18]}  Qf2 {[%clk 0:01:04]} 33. Rf1 {[%clk 0:00:17]}  Qe3 {[%clk 0:00:51]} 34. Qxe3 {[%clk 0:00:17]} 1-0


[Site "https://www.chess.com"]

[Event "Titled Tuesday Blitz November 14 Late 2023"]
[White "Kujawski, Adam"]
[Black "Zeltsan, Joseph"]
[WhiteFideId "1100920"]
[BlackFideId "30932980"]
[WhiteElo "2416"]
[BlackElo "2705"]
[Result "0-1"]
[Round "1"]
[TimeControl "180+1"]
[Date "2023.11.14"]
[WhiteClock "0:00:00"]
[BlackClock "0:01:37"]
[Board "71"]

1. e4 {[%clk 0:03:00]}  c5 {[%clk 0:02:59]} 2. Nf3 {[%clk 0:03:00]}  d6 {[%clk 0:03:00]} 3. d4 {[%clk 0:03:00]}  cxd4 {[%clk 0:03:00]} 4. Nxd4 {[%clk 0:03:01]}  Nf6 {[%clk 0:03:01]} 5. Nc3 {[%clk 0:03:01]}  a6 {[%clk 0:03:02]} 6. Bg5 {[%clk 0:03:01]}  e6 {[%clk 0:03:02]} 7. f4 {[%clk 0:03:00]}  Qb6 {[%clk 0:03:02]} 8. Qd3 {[%clk 0:02:59]}  Qxb2 {[%clk 0:03:00]} 9. Rb1 {[%clk 0:02:59]}  Qa3 {[%clk 0:03:01]} 10. f5 {[%clk 0:02:55]}  Be7 {[%clk 0:03:01]} 11. fxe6 {[%clk 0:02:51]}  fxe6 {[%clk 0:03:02]} 12. Be2 {[%clk 0:02:51]}  Qa5 {[%clk 0:02:56]} 13. Bd2 {[%clk 0:02:27]}  Qc7 {[%clk 0:02:55]} 14. O-O {[%clk 0:02:25]}  O-O {[%clk 0:02:54]} 15. a4 {[%clk 0:02:11]}  Nc6 {[%clk 0:02:52]} 16. Qc4 {[%clk 0:01:44]}  Qd7 {[%clk 0:02:35]} 17. Nf5 {[%clk 0:01:40]}  Kh8 {[%clk 0:02:15]} 18. Nxe7 {[%clk 0:01:37]}  Qxe7 {[%clk 0:02:16]} 19. Bg5 {[%clk 0:01:16]}  Bd7 {[%clk 0:02:14]} 20. Qb3 {[%clk 0:00:37]}  Rac8 {[%clk 0:01:39]} 21. Qxb7 {[%clk 0:00:28]}  Nd4 {[%clk 0:01:39]} 22. Bxf6 {[%clk 0:00:00]}  gxf6 {[%clk 0:01:37]} 0-1


[Site "https://www.chess.com"]

[Event "Titled Tuesday Blitz November 14 Late 2023"]
[White "Abduzhaparov"]
[Black "Hasangatin, Ramil"]
[BlackFideId "4122160"]
[WhiteElo "2408"]
[BlackElo "2689"]
[Result "0-1"]
[Round "1"]
[TimeControl "180+1"]
[Date "2023.11.14"]
[WhiteClock "0:00:00"]
[BlackClock "0:01:37"]
[Board "75"]

1. Nf3 {[%clk 0:03:00]}  d5 {[%clk 0:02:59]} 2. c4 {[%clk 0:03:01]}  c6 {[%clk 0:02:58]} 3. d4 {[%clk 0:03:01]}  dxc4 {[%clk 0:02:58]} 4. e3 {[%clk 0:03:02]}  Be6 {[%clk 0:02:58]} 5. a4 {[%clk 0:03:00]}  Nf6 {[%clk 0:02:57]} 6. Na3 {[%clk 0:02:59]}  c5 {[%clk 0:02:58]} 7. Nxc4 {[%clk 0:02:57]}  Nc6 {[%clk 0:02:56]} 8. Nfe5 {[%clk 0:02:50]}  Nxe5 {[%clk 0:02:55]} 9. Nxe5 {[%clk 0:02:50]}  a6 {[%clk 0:02:56]} 10. Nf3 {[%clk 0:02:36]}  Bd5 {[%clk 0:02:53]} 11. Be2 {[%clk 0:02:34]}  cxd4 {[%clk 0:02:52]} 12. Qxd4 {[%clk 0:02:30]}  e6 {[%clk 0:02:50]} 13. O-O {[%clk 0:02:27]}  Rc8 {[%clk 0:02:50]} 14. Rd1 {[%clk 0:02:18]}  Bc5 {[%clk 0:02:49]} 15. Qh4 {[%clk 0:02:13]}  Qe7 {[%clk 0:02:49]} 16. Bd2 {[%clk 0:02:06]}  Ne4 {[%clk 0:02:48]} 17. Qxe7+ {[%clk 0:01:56]}  Kxe7 {[%clk 0:02:49]} 18. Be1 {[%clk 0:01:55]}  Bb3 {[%clk 0:02:43]} 19. Rdc1 {[%clk 0:01:44]}  Rhd8 {[%clk 0:02:41]} 20. a5 {[%clk 0:01:34]}  Bd6 {[%clk 0:02:32]} 21. Nd2 {[%clk 0:01:16]}  Nxd2 {[%clk 0:02:27]} 22. Bxd2 {[%clk 0:01:17]}  Rxc1+ {[%clk 0:02:22]} 23. Bxc1 {[%clk 0:01:13]}  Bb4 {[%clk 0:02:18]} 24. Kf1 {[%clk 0:01:03]}  Rd5 {[%clk 0:02:17]} 25. e4 {[%clk 0:00:55]}  Rxa5 {[%clk 0:02:14]} 26. Rxa5 {[%clk 0:00:54]}  Bxa5 {[%clk 0:02:15]} 27. Be3 {[%clk 0:00:54]}  Bb4 {[%clk 0:02:12]} 28. Bd3 {[%clk 0:00:54]}  e5 {[%clk 0:02:11]} 29. Ke2 {[%clk 0:00:54]}  b5 {[%clk 0:02:07]} 30. Bd2 {[%clk 0:00:42]}  Bxd2 {[%clk 0:02:06]} 31. Kxd2 {[%clk 0:00:43]}  Kd6 {[%clk 0:02:04]} 32. Kc3 {[%clk 0:00:40]}  Be6 {[%clk 0:02:02]} 33. b4 {[%clk 0:00:38]}  Kc6 {[%clk 0:02:01]} 34. g3 {[%clk 0:00:29]}  g5 {[%clk 0:02:01]} 35. h4 {[%clk 0:00:24]}  gxh4 {[%clk 0:02:00]} 36. gxh4 {[%clk 0:00:23]}  Kb6 {[%clk 0:02:00]} 37. Be2 {[%clk 0:00:20]}  a5 {[%clk 0:01:59]} 38. Bd3 {[%clk 0:00:20]}  Bd7 {[%clk 0:01:55]} 39. Be2 {[%clk 0:00:19]}  a4 {[%clk 0:01:42]} 40. Kb2 {[%clk 0:00:18]}  Bc6 {[%clk 0:01:40]} 41. Bd3 {[%clk 0:00:12]}  Kc7 {[%clk 0:01:40]} 42. Kc3 {[%clk 0:00:08]}  Kd6 {[%clk 0:01:40]} 43. Bb1 {[%clk 0:00:07]}  Ke7 {[%clk 0:01:38]} 44. Kd3 {[%clk 0:00:05]}  Kf6 {[%clk 0:01:38]} 45. Ba2 {[%clk 0:00:03]}  Bd7 {[%clk 0:01:37]} 46. Ke3 {[%clk 0:00:04]}  Be6 {[%clk 0:01:37]} 47. Bb1 {[%clk 0:00:00]}  a3 {[%clk 0:01:37]} 0-1


[Site "https://www.chess.com"]

[Event "Titled Tuesday Blitz November 14 Late 2023"]
[White "Gurevich, Dmitry"]
[Black "Zakaryan, David"]
[WhiteFideId "2000407"]
[BlackFideId "24101923"]
[WhiteElo "2408"]
[BlackElo "2684"]
[Result "0-1"]
[Round "1"]
[TimeControl "180+1"]
[Date "2023.11.14"]
[WhiteClock "0:00:12"]
[BlackClock "0:00:22"]
[Board "77"]

1. d4 {[%clk 0:02:57]}  Nf6 {[%clk 0:02:59]} 2. c4 {[%clk 0:02:57]}  e6 {[%clk 0:03:00]} 3. Nf3 {[%clk 0:02:55]}  d5 {[%clk 0:02:59]} 4. Nc3 {[%clk 0:02:54]}  Bb4 {[%clk 0:02:59]} 5. e3 {[%clk 0:02:54]}  O-O {[%clk 0:02:58]} 6. Bd3 {[%clk 0:02:53]}  dxc4 {[%clk 0:02:49]} 7. Bxc4 {[%clk 0:02:53]}  c5 {[%clk 0:02:49]} 8. O-O {[%clk 0:02:51]}  cxd4 {[%clk 0:02:49]} 9. exd4 {[%clk 0:02:51]}  b6 {[%clk 0:02:47]} 10. Bg5 {[%clk 0:02:44]}  Bb7 {[%clk 0:02:37]} 11. Qe2 {[%clk 0:02:42]}  Nbd7 {[%clk 0:02:31]} 12. Rad1 {[%clk 0:02:38]}  Bxc3 {[%clk 0:02:29]} 13. bxc3 {[%clk 0:02:36]}  Qc7 {[%clk 0:02:23]} 14. Ne5 {[%clk 0:02:33]}  Nxe5 {[%clk 0:01:57]} 15. dxe5 {[%clk 0:02:32]}  Ne4 {[%clk 0:01:47]} 16. Bd2 {[%clk 0:02:13]}  Rac8 {[%clk 0:01:44]} 17. Bd3 {[%clk 0:02:12]}  Nxd2 {[%clk 0:01:44]} 18. Rxd2 {[%clk 0:02:09]}  Qxc3 {[%clk 0:01:41]} 19. Bb1 {[%clk 0:01:58]}  Rfd8 {[%clk 0:01:38]} 20. Rc2 {[%clk 0:01:49]}  Qa3 {[%clk 0:01:24]} 21. Rxc8 {[%clk 0:01:41]}  Rxc8 {[%clk 0:01:25]} 22. Rd1 {[%clk 0:01:40]}  Rc1 {[%clk 0:01:10]} 23. h3 {[%clk 0:01:28]}  Bd5 {[%clk 0:01:06]} 24. Kh2 {[%clk 0:01:17]}  Rxd1 {[%clk 0:01:03]} 25. Qxd1 {[%clk 0:01:16]}  Qb4 {[%clk 0:00:59]} 26. Qc2 {[%clk 0:01:10]}  g6 {[%clk 0:00:54]} 27. Qc1 {[%clk 0:00:46]}  Qc5 {[%clk 0:00:47]} 28. Qg5 {[%clk 0:00:41]}  Qxf2 {[%clk 0:00:41]} 29. h4 {[%clk 0:00:31]}  h6 {[%clk 0:00:40]} 30. Qg4 {[%clk 0:00:27]}  Kg7 {[%clk 0:00:29]} 31. a4 {[%clk 0:00:12]}  Qe3 {[%clk 0:00:22]} 0-1


[Site "https://www.chess.com"]